Cogmind - Beta 15 @@@ ROGUE MODE // 2025.05.25 @ 18:19:58 Player: KaiserChief Result: Destroyed by B-75 Beast with Heavy Plasma Cannon Performance ------------- Evolutions (4) 2000 Regions Visited (8) 1600 Robots Destroyed (38) 190 Value Destroyed (1125) 1125 Prototype IDs (0) 0 Alien Tech Used (0) 0 Bonus (1271) 1271 TOTAL SCORE: 6186 Bonus ------- Follower Combat Kills 371 Entered Garrisons 400 Used RIF Installer 500 Cogmind --------- Core Integrity 0/850 Matter 7/300 Energy 290/290 System Corruption 10% Temperature Cool (12) Movement Core (700) Ox13 Location -6/Garrison Parts ------- > --- POWER (2) -------- Reinforced Deuterium Engine > --- PROPULSION (4) --- (None) > --- UTILITY (7) ------ Large Storage Unit Advanced Signal Interpreter ECM Suite Improved Hacking Suite > --- WEAPON (2) ------- Remote Datajack > --- INVENTORY (15) --- Signal Interpreter Relay Coupler [Sentry] (3) Relay Coupler [Hunter] (3) Relay Coupler [Proto] (3) Drone Bay (2/2) Battle Rifle Light Cannon Improved Datajack Peak State ------------ > --- POWER ------------ Improved Ion Engine Improved Ion Engine > --- PROPULSION ------- Light Treads Light Treads Light Treads Improved Treads > --- UTILITY ---------- Large Storage Unit Advanced Terrain Scanner Terrain Scan Processor Improved Light Armor Plating Medium Reactive Plating Improved Hacking Suite Relay Coupler [Heavy] > --- WEAPON ----------- Magnetic Acceleration Cannon Magnetic Acceleration Cannon > --- INVENTORY -------- Sensor Array Signal Interpreter ECM Suite Relay Coupler [Sentry] Relay Coupler [Hunter] Relay Coupler [Proto] Drone Bay Battle Rifle Light Cannon Improved Datajack Remote Datajack [Rating: 48] Favorites ----------- Power Improved Ion Engine Engine Improved Ion Engine Propulsion Light Treads Treads Light Treads Leg Aluminum Leg Utility Large Storage Unit Device Advanced Terrain Scanner Storage Large Storage Unit Processor Advanced Signal Interpreter Hackware Improved Hacking Suite Protection Improved Light Armor Plating Weapon Light Cannon Ballistic Gun Battle Rifle Ballistic Cannon Light Cannon Launcher EMP Blaster Special Weapon Remote Datajack Impact Weapon Flail Special Melee Weapon Datajack Build | -11 -10 -9 -9 -9 -9 -9 -6 -6 ------- Run | Yrd Mat Mat Sto Gar Rec Scr Fac Gar Slots Evolved 8 | . . 2 . . . . 6 . Power 1 | . . . . . . . 1 . Propulsion 2 | . . 2 . . . . . . Utility 5 | . . . . . . . 5 . Weapon . | . . . . . . . . . Parts Attached 46 | 6 11 7 1 4 2 3 10 2 Power 8 | 1 2 2 . 1 . . 2 . Engine 8 | 1 2 2 . 1 . . 2 . Core . | . . . . . . . . . Reactor . | . . . . . . . . . Propulsion 11 | 2 2 4 . 1 2 . . . Treads 7 | . . 4 . 1 2 . . . Leg 4 | 2 2 . . . . . . . Wheel . | . . . . . . . . . Hover . | . . . . . . . . . Flight . | . . . . . . . . . Utility 13 | 1 2 . . 2 . 1 6 1 Device 4 | . 1 . . 2 . 1 . . Storage 2 | 1 1 . . . . . . . Processor 2 | . . . . . . . 1 1 Hackware 2 | . . . . . . . 2 . Protection 3 | . . . . . . . 3 . Artifact . | . . . . . . . . . Weapon 14 | 2 5 1 1 . . 2 2 1 Energy Gun . | . . . . . . . . . Energy Cannon . | . . . . . . . . . Ballistic Gun 6 | 2 1 1 1 . . 1 . . Ballistic Cannon 3 | . . . . . . 1 2 . Launcher 1 | . 1 . . . . . . . Special Weapon 1 | . . . . . . . . 1 Impact Weapon 1 | . 1 . . . . . . . Slashing Weapon . | . . . . . . . . . Piercing Weapon . | . . . . . . . . . Special Melee Weapon 2 | . 2 . . . . . . . Unidentified Prototypes . | . . . . . . . . . Parts Lost 27 | . 7 . 1 6 . . 10 3 Power 5 | . 2 . . 1 . . 2 . Propulsion 9 | . 2 . . 3 . . 3 1 Utility 7 | . 1 . . . . . 4 2 Weapon 6 | . 2 . 1 2 . . 1 . Highest Loss Streak 7 | . 7 . 1 5 . . 5 3 To Critical Strikes 2 | . . . . 1 . . 1 . Average Backups 12 | 2 6 13 12 8 5 13 10 9 Power 1 | 1 1 1 2 1 1 1 . . Propulsion . | . 1 3 2 . . . . . Utility 7 | . . 3 4 4 4 11 7 5 Weapon . | . 2 3 2 1 . . 1 2 Tool/Special . | . . . . . . . . . Unused Backups 13 | . . . 4 . . 3 . 6 Power 2 | . . . 2 . . . . . Propulsion 1 | . . . 1 . . . . . Utility 7 | . . . . . . 2 . 5 Weapon 2 | . . . 1 . . 1 . . Tool/Special 1 | . . . . . . . . 1 Average Slot Usage (%) 96 | . 93 99 100 92 92 99 86 50 Engine 10 | . 13 11 11 10 11 11 9 6 Treads 38 | . . 43 44 37 36 44 22 4 Leg 1 | . 26 . . . . . . . Device 10 | . 6 11 11 11 11 11 6 17 Storage 10 | . 14 11 11 11 11 11 6 6 Ballistic Gun 12 | . 21 11 19 11 11 11 1 . Ballistic Cannon 5 | . . . . . . 9 9 . Impact Weapon 1 | . . 3 1 3 11 1 . . Peak Build Rating 48 | 6 9 17 17 17 13 21 48 29 Average Rating 18 | 4 7 16 16 14 12 20 42 26 On Entrance 12 | . 6 9 17 17 11 13 21 21 Naked Turns . | . . . . . . . . . Heaviest Build 74 | 14 31 34 36 35 34 34 74 40 Greatest Support 92 | 20 20 92 92 92 83 83 83 23 Greatest Overweight (x) 13 | . 2 . . . . . 1 13 Average Overweight (x) . | . . . . . . . . 1 Largest Inventory Capacity 15 | 8 15 15 15 15 15 15 15 15 Average Capacity 14 | 7 10 15 15 15 15 15 15 15 Most Carried 15 | 4 12 14 15 9 7 15 14 12 Average Carried 12 | 1 6 13 12 8 5 13 10 8 Final Capacity 15 | 8 15 15 15 15 15 15 15 15 Final Carried 15 | 2 12 14 9 5 5 15 12 8 Class Distribution -------------------- 49% | Bothacker-Mutant 28% | Mutant 12% | Scavenger-Mutant 9% | Commander-Mutant Dominant Class ---------------- Mutant | -10/Materials Mutant | -9/Materials Mutant | -9/Storage Commander-Mutant | -9/Garrison Scavenger-Mutant | -9/Recycling Bothacker-Mutant | -9/Scraptown Scavenger-Mutant | -6/Factory Mutant | -6/Garrison Resources | -11 -10 -9 -9 -9 -9 -9 -6 -6 ----------- Run | Yrd Mat Mat Sto Gar Rec Scr Fac Gar Matter Collected 1225 | 171 241 352 170 177 29 62 6 17 Remotely . | . . . . . . . . . Salvage Created 1427 | . 261 409 454 173 56 . 74 . Parts 96 | . 22 22 31 14 4 . 3 . Haulers Intercepted . | . . . . . . . . . Recyclers Shooed 2 | . . . 1 . . . 1 . Parts Field Recycled . | . . . . . . . . . Retrieved Matter . | . . . . . . . . . Parts Self-Destructed . | . . . . . . . . . Prevented . | . . . . . . . . . Kills | -11 -10 -9 -9 -9 -9 -9 -6 -6 ------- Run | Yrd Mat Mat Sto Gar Rec Scr Fac Gar Combat Hostiles Destroyed 34 | . 11 6 8 6 1 . 2 . Guns 30 | . 11 5 7 6 1 . . . Cannons 2 | . . . . . . . 2 . AOE 2 | . . 1 1 . . . . . Classes Destroyed 7 | . 2 3 1 . . . 1 . Builder 2 | . . 1 1 . . . . . Recycler 1 | . . . 1 . . . . . Watcher 1 | . . 1 . . . . . . Swarmer 8 | . 6 . . 2 . . . . Grunt 19 | . 5 4 5 4 . . 1 . Brawler 1 | . . . . . . . 1 . Sentry 6 | . . 2 3 . 1 . . . Best Kill Streak 5 | . 5 3 4 4 1 . 2 . Combat Bots Only 5 | . 5 2 3 4 1 . 2 . Max Kills in Single Turn 2 | . 1 1 1 2 1 . 1 . Gunslinging 1 | . . . . 1 . . . . Exploded 1 | . . 1 1 . . . . . Melee . | . . . . . . . . . Uniques/NPCs Destroyed . | . . . . . . . . . Combat | -11 -10 -9 -9 -9 -9 -9 -6 -6 -------- Run | Yrd Mat Mat Sto Gar Rec Scr Fac Gar Hostile Shots Fired 369 | . 103 32 42 61 4 . 93 34 Missed 103 | . 27 10 12 18 1 . 27 8 Hits 266 | . 76 22 30 43 3 . 66 26 Melee 23 | . . . . . . . 23 . Projectile 243 | . 76 22 30 43 3 . 43 26 Critical Strikes 11 | . . . . 2 . . 7 2 Part Disruptions 1 | . . . . 1 . . . . Damage Taken 4732 | . 759 320 389 657 47 . 1822 738 Core 1168 | . 148 12 33 81 18 . 443 433 Absorbed by Shields . | . . . . . . . . . Regen/Repaired (Parts) 417 | . . . . . . 417 . . Core Remaining (%) 68 | 100 40 . . . . 64 . . Volleys Fired 135 | . 46 28 26 10 3 . 19 3 Largest 2 | . 2 2 2 2 1 . 2 1 Hottest 88 | . 40 56 56 46 23 . 88 5 Shots Fired 223 | . 72 38 50 19 3 . 38 3 Gun 168 | . 72 28 45 19 3 . 1 . Cannon 37 | . . . . . . . 37 . Launcher 15 | . . 10 5 . . . . . Special 3 | . . . . . . . . 3 Kinetic 205 | . 72 28 45 19 3 . 38 . Thermal . | . . . . . . . . . Explosive . | . . . . . . . . . Electromagnetic 15 | . . 10 5 . . . . . Robot Hit Streak 13 | . 13 6 6 5 6 . 4 1 Robot Miss Streak 6 | . 6 1 2 3 . . 3 1 Penetration Max . | . . . . . . . . . Secondary Targets 2 | . . . . 2 . . . . Max Gunslinging Chain 1 | . . . . 1 . . . . Shots Hit Robots 133 | . 48 22 27 11 3 . 21 1 Core Hits 66 | . 17 14 16 7 2 . 10 . Critical Kills . | . . . . . . . . . Critical Parts Destroyed . | . . . . . . . . . Critical Strikes 2 | . . . . . . . 2 . Blast 2 | . . . . . . . 2 . Melee Attacks 6 | . 3 . . 3 . . . . Impact 1 | . . . . 1 . . . . Slashing . | . . . . . . . . . Piercing . | . . . . . . . . . Sneak Attacks . | . . . . . . . . . Combat Hostiles . | . . . . . . . . . Follow-up Attacks . | . . . . . . . . . Damage Inflicted 2547 | 3 593 509 549 167 46 . 680 . Guns 1498 | . 593 294 398 167 46 . . . Cannons 675 | . . . . . . . 675 . Explosions 366 | . . 215 151 . . . . . Melee . | . . . . . . . . . Ramming 8 | 3 . . . . . . 5 . Kinetic 2173 | . 593 294 398 167 46 . 675 . Thermal . | . . . . . . . . . Explosive . | . . . . . . . . . Electromagnetic 366 | . . 215 151 . . . . . Impact . | . . . . . . . . . Slashing . | . . . . . . . . . Piercing . | . . . . . . . . . Highest Corruption 10 | . . 1 1 3 3 . 10 10 Average Corruption 2 | . . 1 1 1 3 . 6 10 Corruption Purged . | . . . . . . . . . Corruption Blocked . | . . . . . . . . . Effects 35 | . . 3 5 10 6 . 2 9 Message Errors 13 | . . 1 1 3 2 . . 6 Matter Fused 5 | . . . . 1 2 . 1 1 Heat Flow Errors 3 | . . . 1 1 1 . . . Energy Discharges 8 | . . 1 2 3 1 . . 1 Data Loss (minor) 5 | . . 1 1 1 . . 1 1 Data Loss (major) 1 | . . . . 1 . . . . Overload Shots . | . . . . . . . . . Overflow Damage . | . . . . . . . . . Projectiles . | . . . . . . . . . Explosions . | . . . . . . . . . Melee . | . . . . . . . . . Knockbacks 3 | . . . . . . . 3 . Impact . | . . . . . . . . . Kinetic 2 | . . . . . . . 2 . Secondary 1 | . . . . . . . 1 . Self-Inflicted Damage 71 | . . 44 27 . . . . . Shots 6 | . . 3 3 . . . . . Rammed 3 | . . . . 1 . . 2 . Targets Rammed 4 | 1 . . . 1 . . 2 . Kicked 1 | 1 . . . . . . . . Crushed . | . . . . . . . . . Highest Temperature 553 | . 19 4 155 263 179 . 553 315 Average Temperature 169 | . 7 2 47 109 90 . 269 160 Received Heat Transfer 1464 | . 276 135 159 30 9 . 405 450 Effects 14 | . . . . . . . 14 . Shutdowns 4 | . . . . . . . 4 . Short Circuit 2 | . . . . . . . 2 . Damage (minor) 1 | . . . . . . . 1 . Damage (major) 5 | . . . . . . . 5 . Damage (core) 2 | . . . . . . . 2 . Siege Activations . | . . . . . . . . . Martial Activations . | . . . . . . . . . Shielding Activations . | . . . . . . . . . Robots Disrupted . | . . . . . . . . . Combat Hostiles . | . . . . . . . . . Robots Corrupted 1 | . . . 1 . . . . . Combat Hostiles . | . . . . . . . . . Parts Fried 1 | . . . 1 . . . . . Impact Corruptions . | . . . . . . . . . Robots Melted . | . . . . . . . . . Combat Hostiles . | . . . . . . . . . Parts Melted . | . . . . . . . . . Heat Transferred . | . . . . . . . . . Parts Sabotaged . | . . . . . . . . . Parts Stolen . | . . . . . . . . . Parts Stripped . | . . . . . . . . . Power Chain Reactions 1 | . . 1 . . . . . . Alert | -11 -10 -9 -9 -9 -9 -9 -6 -6 ------- Run | Yrd Mat Mat Sto Gar Rec Scr Fac Gar Maximum Alert Level 2 | . . . . 2 . . . . Low Security (%) 81 | 100 100 100 100 9 100 . 100 100 Level 1 15 | . . . . 72 . . . . Level 2 3 | . . . . 17 . . . . Level 3 . | . . . . . . . . . Level 4 . | . . . . . . . . . Level 5 . | . . . . . . . . . High Security . | . . . . . . . . . Max Security . | . . . . . . . . . Peak Influence 467 | . 110 69 71 467 160 . 53 . Initial 160 | . . . . 37 160 . . . Average 100 | . 50 31 23 349 116 . 10 . Influence Increases 1431 | . 297 209 320 521 25 . 59 . Destroy 0b10 Robot/C 980 | . 220 120 200 380 20 . 40 . Destroy 0b10 Robot/NC 25 | . . 10 15 . . . . . Destroy Leader 164 | . 40 42 62 10 . . 10 . Allied During Kill 162 | . . . 31 131 . . . . Successful Hack 22 | . 7 . 10 . 5 . . . Disable Machine 30 | . . 30 . . . . . . Destroy Structure 18 | . . 7 2 . . . 9 . Lose Combat Pursuer 30 | . 30 . . . . . . . Influence Decreases 1431 | . 297 208 264 220 328 55 59 . Entered New Map 274 | . . . 1 20 198 55 . . Time Decay 840 | . 227 208 233 . 130 . 42 . Lost Part 157 | . 70 . 10 60 . . 17 . Lost Ally 160 | . . . 20 140 . . . . Squads Dispatched 6 | . 2 1 1 . . . 2 . Investigation 2 | . 1 . 1 . . . . . Extermination . | . . . . . . . . . Reinforcement 2 | . 1 1 . . . . . . Assault . | . . . . . . . . . Garrison 2 | . . . . . . . 2 . Intercept . | . . . . . . . . . Searches Triggered . | . . . . . . . . . Construction Impeded 1 | . . 1 . . . . . . Haulers Reinforced . | . . . . . . . . . Active Scanning Responses . | . . . . . . . . . Cargo Convoy Interrupts . | . . . . . . . . . Stealth | -11 -10 -9 -9 -9 -9 -9 -6 -6 --------- Run | Yrd Mat Mat Sto Gar Rec Scr Fac Gar Distress Signals 4 | . 1 1 2 . . . . . Communications Jammed . | . . . . . . . . . Distress Signals . | . . . . . . . . . Times Spotted 72 | . 17 9 15 22 1 . 7 1 Peak Tracking Total 7 | . 6 2 3 7 1 . 5 3 Tactical Retreats 9 | . 1 3 2 1 . . . 2 Traps | -11 -10 -9 -9 -9 -9 -9 -6 -6 ------- Run | Yrd Mat Mat Sto Gar Rec Scr Fac Gar Traps Triggered 2 | . 1 . . 1 . . . . Indirectly . | . . . . . . . . . Trap Hack Attempts 10 | . 5 . . 5 . . . . Triggered . | . . . . . . . . . Disarmed 1 | . 1 . . . . . . . Reprogrammed 1 | . . . . 1 . . . . Reused . | . . . . . . . . . Traps Extracted . | . . . . . . . . . Installed . | . . . . . . . . . Triggered . | . . . . . . . . . Machines | -11 -10 -9 -9 -9 -9 -9 -6 -6 ---------- Run | Yrd Mat Mat Sto Gar Rec Scr Fac Gar Machines Disabled 2 | . . 2 . . . . . . Max in Single Turn 1 | . . 1 . . . . . . Machines Repaired . | . . . . . . . . . Machines Dismantled . | . . . . . . . . . Machines Sabotaged . | . . . . . . . . . Overloaded Fab Kills . | . . . . . . . . . Hacking | -11 -10 -9 -9 -9 -9 -9 -6 -6 --------- Run | Yrd Mat Mat Sto Gar Rec Scr Fac Gar Machines Accessed 15 | . 3 . 5 . 3 3 1 . Terminals 7 | . 2 . 4 . 1 . . . Fabricators . | . . . . . . . . . Repair Stations 1 | . 1 . . . . . . . Recycling Units . | . . . . . . . . . Scanalyzers . | . . . . . . . . . Garrison Access 2 | . . . 1 . . . 1 . Total Hacks 67 | . 9 . 7 . 26 23 2 . Successful 57 | . 3 . 3 . 26 23 2 . Failed 10 | . 6 . 4 . . . . . Catastrophic 5 | . 3 . 2 . . . . . Database Lockouts . | . . . . . . . . . Manual 2 | . . . 1 . . 1 . . Terminals 11 | . 4 . 6 . 1 . . . Fabricators . | . . . . . . . . . Repair Stations 5 | . 5 . . . . . . . Recycling Units . | . . . . . . . . . Scanalyzers . | . . . . . . . . . Garrison Access 3 | . . . 1 . . . 2 . Terminal Hacks 52 | . 1 . 2 . 26 23 . . Record 47 | . . . . . 24 23 . . Part Schematic 1 | . . . 1 . . . . . Branch Access Points 1 | . 1 . . . . . . . Emergency Access Points 1 | . . . 1 . . . . . Zone Layout 1 | . . . . . 1 . . . Release Object 1 | . . . . . 1 . . . Fabricator Hacks . | . . . . . . . . . Repair Station Hacks 2 | . 2 . . . . . . . Scan Component 1 | . 1 . . . . . . . Refit 1 | . 1 . . . . . . . Recycling Unit Hacks . | . . . . . . . . . Scanalyzer . | . . . . . . . . . Garrison Access Hacks 3 | . . . 1 . . . 2 . Unlock Access 2 | . . . 1 . . . 1 . Coupler Status 1 | . . . . . . . 1 . Unauthorized Hacks . | . . . . . . . . . Terminals . | . . . . . . . . . Fabricators . | . . . . . . . . . Repair Stations . | . . . . . . . . . Recycling Units . | . . . . . . . . . Scanalyzers . | . . . . . . . . . Garrison Access . | . . . . . . . . . Data Cores Recovered . | . . . . . . . . . Used . | . . . . . . . . . Hacking Detections 5 | . 2 . 2 . . . 1 . Full Trace Events 3 | . 2 . 1 . . . . . Feedback Events . | . . . . . . . . . Feedback Blocked . | . . . . . . . . . Robot Schematics Acquired . | . . . . . . . . . Robots Built . | . . . . . . . . . Authchips . | . . . . . . . . . Time . | . . . . . . . . . Total Robot Build Rating . | . . . . . . . . . Part Schematics Acquired 1 | . . . 1 . . . . . Parts Built . | . . . . . . . . . Authchips . | . . . . . . . . . Time . | . . . . . . . . . Total Part Build Rating . | . . . . . . . . . Parts Repaired . | . . . . . . . . . Time . | . . . . . . . . . Parts Recycled . | . . . . . . . . . Recycled Matter . | . . . . . . . . . Retrieved Matter . | . . . . . . . . . Retrieved Components . | . . . . . . . . . Parts Scanalyzed . | . . . . . . . . . Part Schematics Acquired . | . . . . . . . . . Parts Damaged . | . . . . . . . . . Bothacking | -11 -10 -9 -9 -9 -9 -9 -6 -6 ------------ Run | Yrd Mat Mat Sto Gar Rec Scr Fac Gar Used RIF Installer 1 | . . . . 1 . . . . Robots Hacked 2 | . . . . 1 . . . 1 Non-combat . | . . . . . . . . . Combat 2 | . . . . 1 . . . 1 Robot Hacks Applied 2 | . . . . 1 . . . 1 parse_system 2 | . . . . 1 . . . 1 Relay Couplers Released . | . . . . . . . . . Attached 1 | . . . . . . . 1 . Fabnet Peak Effective % . | . . . . . . . . . Robots Rewired . | . . . . . . . . . Allies Hacked . | . . . . . . . . . Hacks Repelled . | . . . . . . . . . Allies | -11 -10 -9 -9 -9 -9 -9 -6 -6 -------- Run | Yrd Mat Mat Sto Gar Rec Scr Fac Gar Total Allies 10 | . . . 10 . . . . . Largest Group 10 | . . . 10 9 . . . . Highest-Rated Group 88 | . . . 88 72 . . . . Highest-Rated Ally 16 | . . . 16 8 . . . . Total Orders . | . . . . . . . . . Ally Attacks 95 | . . . 15 80 . . . . Total Damage 890 | . . . 123 767 . . . . Kills 18 | . . . 3 15 . . . . Allies Corrupted . | . . . . . . . . . Allies Melted . | . . . . . . . . . Intel | -11 -10 -9 -9 -9 -9 -9 -6 -6 ------- Run | Yrd Mat Mat Sto Gar Rec Scr Fac Gar Active Infowar (turns) 7745 | . 277 503 855 725 264 4641 229 251 Sensors 220 | . . . . 1 . . . 219 Terrain 4674 | . . . . 2 . 4220 229 223 ECM 3288 | . 277 503 855 722 264 421 . 246 Robot Analysis Total . | . . . . . . . . . Derelict Logs Recovered . | . . . . . . . . . Drone Launches . | . . . . . . . . . Drone Recoveries . | . . . . . . . . . Exploration | -11 -10 -9 -9 -9 -9 -9 -6 -6 ------------- Run | Yrd Mat Mat Sto Gar Rec Scr Fac Gar Turns Passed 8141 | 104 569 503 855 725 264 4641 229 251 Spaces Moved 3873 | 48 248 225 449 397 157 2191 67 91 Core 21 | 11 4 . . . . . . 6 Treads 3571 | . . 225 449 397 157 2191 67 85 Legs 281 | 37 244 . . . . . . . Wheels . | . . . . . . . . . Hover . | . . . . . . . . . Flight . | . . . . . . . . . Fastest Speed 50 | 50 120 160 160 160 160 160 160 240 Average Speed 161 | 103 149 160 160 160 160 160 174 269 Slowest Speed 700 | 120 190 160 160 160 160 160 240 700 Overloaded Moves . | . . . . . . . . . Propulsion Burnouts . | . . . . . . . . . Robots Hopped . | . . . . . . . . . Potential Cave-ins . | . . . . . . . . . Cave-ins Triggered . | . . . . . . . . . Exploration Rate (%) 32 | 4 43 20 68 50 29 61 3 15 Regions Visited 8 Branch Regions 3 Pre-discovered Areas . | . . . . . . . . . Known Exits Taken 2 | . . . 1 . . . 1 . Unknown Exits Taken 5 | 1 1 1 . . 1 1 . . Scrap Searched 7 | . . . . . . 7 . . Spaces Dug . | . . . . . . . . . Terrain Destroyed 16 | . . 7 . . . . 9 . Melee . | . . . . . . . . . Projectile 9 | . . . . . . . 9 . AOE 7 | . . 7 . . . . . . Terrain Rammed . | . . . . . . . . . Walls Destroyed . | . . . . . . . . . Machines Disabled . | . . . . . . . . . Actions | -11 -10 -9 -9 -9 -9 -9 -6 -6 --------- Run | Yrd Mat Mat Sto Gar Rec Scr Fac Gar Total 5536 | 102 369 328 542 463 167 3329 138 98 Wait 1376 | 40 35 62 46 40 4 1113 36 . Move 3865 | 47 247 224 448 395 156 2190 67 91 Hop . | . . . . . . . . . Pick Up 60 | 8 17 5 7 . 2 16 5 . Fast Attach . | . . . . . . . . . Attach 35 | 6 7 2 1 4 2 1 8 4 Detach 1 | . . . . . . 1 . . Swap 26 | . 9 6 2 5 . 2 2 . Drop 18 | . . 1 11 . . 6 . . Fire 135 | . 46 28 26 10 3 . 19 3 Melee 6 | . 3 . . 3 . . . . Ram . | . . . . . . . . . Kick 1 | 1 . . . . . . . . Crush 2 | . . . . 1 . . 1 . Escape Stasis . | . . . . . . . . . Rewire 1 | . . . 1 . . . . . Trap 10 | . 5 . . 5 . . . . Miscellaneous . | . . . . . . . . . Route ------- -11/Scrapyard -10/Materials (discovered 2 exits: [*Mat] / Min) -9/Materials -9/Storage -9/Garrison (discovered 2 exits: *Rec x2) -9/Recycling -9/Scraptown -6/Factory -6/Garrison History --------- Turn | Location | Event 2 | -11/Scrapyard | Met Revision 17 9 | -11/Scrapyard | Discovered new exit (range 16) 105 | -11/Scrapyard | Entered Materials 333 | -10/Materials | Build established: Mutant 351 | -10/Materials | Core integrity fell below 50% 401 | -10/Materials | Lost 7 parts (2p2n1u2w) 472 | -10/Materials | Discovered new exit (range 15) 646 | -10/Materials | Identified exit to Mines 674 | -10/Materials | Entered another Materials area 674 | -9/Materials | Evolved 2 slots: Propulsion x2 1037 | -9/Materials | Discovered new exit (range 15) 1177 | -9/Materials | Entered Storage 1943 | -9/Storage | Assisted by bots powering up and referring to "LRC-V3" 2019 | -9/Storage | Identified exit to Garrison 2032 | -9/Storage | Entered Garrison 2032 | -9/Garrison | Accompanied by 9 allies 2142 | -9/Garrison | Triggered checkpoint 2150 | -9/Garrison | Lost 3 allies 2189 | -9/Garrison | Discovered new exit (range 13) 2232 | -9/Garrison | Build established: Commander-Mutant 2261 | -9/Garrison | Installed Relay Interface Framework 2286 | -9/Garrison | Triggered checkpoint 2598 | -9/Garrison | Triggered checkpoint 2701 | -9/Garrison | Discovered new exit (range 11) 2716 | -9/Garrison | Triggered checkpoint 2757 | -9/Garrison | Entered Recycling 2758 | -9/Recycling | Met a Zionite searching for Scraptown 2773 | -9/Recycling | Lost 5 allies 2776 | -9/Recycling | Lost 5 parts (1p2n2w) 2934 | -9/Recycling | Scanned before Scraplab entrance 2958 | -9/Recycling | Entered Scraplab 2981 | -9/Recycling | Discovered new exit (range 3) 3021 | -9/Recycling | Entered Scraptown 3021 | -9/Scraptown | System corruption cleaned by C-Scrubber 3140 | -9/Scraptown | Build established: Scavenger-Mutant 3410 | -9/Scraptown | Visited Bundlers 3617 | -9/Scraptown | Visited Red Mages 3663 | -9/Scraptown | Found Relay Coupler [Proto] 3712 | -9/Scraptown | Visited Junk Repository 3794 | -9/Scraptown | Turned away by UFD registrar 3841 | -9/Scraptown | Visited Cyclists 3924 | -9/Scraptown | Visited Symbiants 4018 | -9/Scraptown | Visited CR-KLE's Repair Center 4029 | -9/Scraptown | CR-KLE repaired 9 parts 4035 | -9/Scraptown | Build established: Bothacker-Mutant 4177 | -9/Scraptown | Discovered new exit (range 3) 6688 | -9/Scraptown | Visited The Evicted 7662 | -9/Scraptown | Entered Factory 7662 | -6/Factory | Evolved 6 slots: Power x1, Utility x5 7737 | -6/Factory | Garrison activated, responded to threat 7878 | -6/Factory | Lost 5 parts (2p2n1u) 7885 | -6/Factory | Identified exit to Garrison 7890 | -6/Factory | System corruption reached 10% 7891 | -6/Factory | Core integrity fell below 50% 7891 | -6/Factory | Entered Garrison 7920 | -6/Garrison | Lost 5 parts (1n3u1w) 8082 | -6/Garrison | Spotted B-75 Beast 8115 | -6/Garrison | Core integrity fell below 20% 8142 | -6/Garrison | Destroyed by B-75 Beast with Heavy Plasma Cannon Last Messages --------------- V:4Z:S1#:CXXSQNG6CYETDQFMV&8QE%UENGOI JUQG#JCNHWRIL8ENM>parse_system Reading system data... Knocked back. Acquired 6 matter. Map ----- +----------------------------------------------------+ | ?????????????????????????????????????????????????? | | ?????????????????????????????????????????????????? | | ?????????????????????????????????????????????????? | | ?????????????????????????????????????????????????? | | ?????????????????????????????????????????????????? | | ?????????????????????????????????????????????????? | | ?????????????????????????????????????????????????? | | ?????????????????????????????????????????????????? | | ?????????????????????????????????????????????????? | | ?????????????????????????????????????????????????? | | ????????????????????????????????????????????#????? | | ??????????????????????????????????????????? #????? | | ????????????????????????????????????????? ????? | | ???????????????????????????????????????? ?????? | | ??????????????????????????????????????? ???????? | | ???###########??????????????????????? ?????????? | | ???""""""""""#?????????????????????? #??????????? | | ??#"""!!!!!!"###################### ## #????? | | ??#"" BB ?? | | ??#"! %BB ?? | | ??#"! ############ ######## ?? | | ??#"! #??????????# #??????????##""""#????? | | ??#"! #??????????# #?????????????????????? | | ??#"" #??????????# #?????????????????????? | | ??#"""!!!!!!"#?########## %#?????????????????????? | | ???""""""""""#?# @ #?????????????????????? | | ???###########?# #?????????????????????? | | ???????????????# ##### ###?????????????????????? | | ???????????????# #???# #???????????????????????? | | ???????????????#####???# #???????????????????????? | | ???????????????????????# #???????????????????????? | | ???????????????????????# #???????????????????????? | | ???????????????????????# #???????????????????????? | | ???????????????????????# #???????????????????????? | | ???????????????????????# #???????????????????????? | | ???????????????????????# #???????????????????????? | | ???????????????????????# #???????????????????????? | | ???????????????????????# #???????????????????????? | | ???????????????????????# #???????????????????????? | | ???????????????????????# #???????????????????????? | | ???????????????????????# ########????????????????? | | ???????????????????????# ?????????? | | ???????????????????????#######"""????????????????? | | ?????????????????????????????????????????????????? | | ?????????????????????????????????????????????????? | | ?????????????????????????????????????????????????? | | ?????????????????????????????????????????????????? | | ?????????????????????????????????????????????????? | | ?????????????????"?"?????????????????????????????? | | ?????????????????"?"?????????????????????????????? | +----------------------------------------------------+ Best States ------------- Heat Dissipation 37 Energy Generation 19 Energy Capacity 430 Matter Stores 300 Matter Capacity 300 Sight Range 16 Robot Scan Range 14 Terrain Scan Range 20 Terrain Scan Density 85 ECM Strength 1 Armor Coverage 375 Resistance: KI 30 Evasion (%) 55 Recoil Reduction 4 Offensive Hacking 12 Relay Coupler Types 1 Relay Coupler Value 2 Item Schematics ----------------- Imp. Light Armor Plating | -9/Storage | Hacked Robot Schematics ------------------ None Fabricated ------------ Nothing Repaired ---------- Nothing Alien Tech Used ----------------- None Achievements -------------- Hehehe Power Corrupts System Compromised The More The Merrier Challenges ------------ None Game ------ Seed AntigravSmartbombFlail Manual? 0 Play Time 01:14:34 Cumulative 7.2 hours Start 2025.05.25 @ 11:43:19 End 2025.05.25 @ 18:19:58 Sessions 3 Manual Loads 0 Difficulty Rogue Special Mode None Game No. 14 Rogue 14 Adventurer 0 Explorer 0 Win Type - Total 0 Types 0/0/0/0/0/0/0/0/0/0 Lore% 16 Gallery% 12 Achievement% 12 Wizard Run 0 Options --------- Layout 2 ASCII 0 Keyboard 0 Movement Numpad Keybinds 0 Fullscreen 1 Font 24/Proggy Map View 50x44 Zoom Use 0% Tactical HUD 0 Map Filters NONE Filters NONE Steam 1 RUN: cc81197f-b945-4cbb-8908-ac372b107f54